Cogmind - Beta 14 @@@ ROGUE MODE // 2024.09.18 @ 19:09:43 Player: Dull Result: Destroyed by S-10 Pest with Light Assault Rifle Performance ------------- Evolutions (0) 0 Regions Visited (1) 200 Robots Destroyed (9) 45 Value Destroyed (98) 98 Prototype IDs (0) 0 Alien Tech Used (0) 0 Bonus (0) 0 TOTAL SCORE: 343 Bonus ------- None Cogmind --------- Core Integrity 0/250 Matter 279/300 Energy 100/100 System Corruption 14% Temperature Cool (0) Movement Core (1350) Ox26 Location -10/Materials Parts ------- > --- POWER (1) -------- (None) > --- PROPULSION (2) --- (None) > --- UTILITY (2) ------ Huge Storage Unit Improved Terrain Scanner > --- WEAPON (2) ------- (None) > --- INVENTORY (25) --- Ion Engine Compact Wheel Peak State ------------ > --- POWER ------------ Ion Engine > --- PROPULSION ------- Aluminum Leg Aluminum Leg > --- UTILITY ---------- Small Storage Unit Improved Terrain Scanner > --- WEAPON ----------- Medium Laser Medium Laser > --- INVENTORY -------- Ion Engine Light Treads Light Treads Compact Wheel Compact Wheel Compact Wheel EM Pulse Gun [Rating: 9] Favorites ----------- Power Ion Engine Engine Ion Engine Propulsion Light Treads Treads Light Treads Leg Aluminum Leg Utility Improved Terrain Scanner Device Improved Terrain Scanner Storage Huge Storage Unit Weapon Medium Laser Energy Gun Medium Laser Build | -11 -10 ------- Run | Yrd Mat Slots Evolved . | . . Power . | . . Propulsion . | . . Utility . | . . Weapon . | . . Parts Attached 4 | 3 1 Power . | . . Engine . | . . Core . | . . Reactor . | . . Propulsion 2 | 2 . Treads 2 | 2 . Leg . | . . Wheel . | . . Hover . | . . Flight . | . . Utility 2 | 1 1 Device 1 | 1 . Storage 1 | . 1 Processor . | . . Hackware . | . . Protection . | . . Artifact . | . . Weapon . | . . Energy Gun . | . . Energy Cannon . | . . Ballistic Gun . | . . Ballistic Cannon . | . . Launcher . | . . Special Weapon . | . . Impact Weapon . | . . Slashing Weapon . | . . Piercing Weapon . | . . Special Melee Weapon . | . . Unidentified Prototypes . | . . Parts Lost 4 | . 4 Power 1 | . 1 Propulsion 1 | . 1 Utility . | . . Weapon 2 | . 2 Highest Loss Streak 2 | . 2 To Critical Strikes 2 | . 2 Average Slot Usage (%) 87 | . 87 Engine 9 | . 9 Treads 25 | . 25 Device 14 | . 14 Storage 14 | . 14 Energy Gun 22 | . 22 Peak Build Rating 9 | 9 9 Average Rating 7 | 7 8 On Entrance 7 | 6 9 Naked Turns . | . . Heaviest Build 90 | 15 90 Greatest Support 40 | 40 40 Greatest Overweight (x) 2 | . 2 Average Overweight (x) . | . 1 Largest Inventory Capacity 25 | 8 25 Average Capacity 20 | 8 24 Most Carried 8 | 8 3 Average Carried 2 | 4 2 Final Capacity 25 | 8 25 Final Carried 2 | 2 2 Class Distribution -------------------- 100% | Mutant Dominant Class ---------------- Mutant | -10/Materials Resources | -11 -10 ----------- Run | Yrd Mat Matter Collected 230 | 230 . Remotely . | . . Salvage Created 244 | 114 130 Parts 15 | 5 10 Haulers Intercepted . | . . Recyclers Shooed 1 | . 1 Parts Field Recycled . | . . Retrieved Matter . | . . Parts Self-Destructed . | . . Prevented . | . . Kills | -11 -10 ------- Run | Yrd Mat Combat Hostiles Destroyed 6 | . 6 Guns 6 | . 6 Classes Destroyed 5 | 2 3 Worker 1 | . 1 Tunneler 1 | 1 . Recycler 1 | 1 . Swarmer 5 | . 5 Grunt 1 | . 1 Best Kill Streak 6 | 2 6 Combat Bots Only 5 | . 5 Max Kills in Single Turn 2 | 1 2 Gunslinging 1 | . 1 Exploded . | . . Melee . | . . Uniques/NPCs Destroyed . | . . Combat | -11 -10 -------- Run | Yrd Mat Hostile Shots Fired 84 | . 84 Missed 15 | . 15 Damage Taken 668 | . 668 Core 253 | . 253 Absorbed by Shields . | . . Core Remaining (%) 100 | 100 . Volleys Fired 35 | 11 24 Largest 2 | 2 2 Hottest 100 | 100 100 Shots Fired 61 | 22 39 Gun 61 | 22 39 Cannon . | . . Launcher . | . . Special . | . . Kinetic . | . . Thermal 61 | 22 39 Explosive . | . . Electromagnetic . | . . Robot Hit Streak 8 | 5 8 Robot Miss Streak 4 | 3 4 Penetration Max . | . . Secondary Targets 1 | . 1 Max Gunslinging Chain 1 | . 1 Shots Hit Robots 40 | 14 26 Core Hits 11 | 3 8 Critical Kills . | . . Critical Parts Destroyed . | . . Critical Strikes 2 | 1 1 Burn 2 | 1 1 Melee Attacks . | . . Impact . | . . Slashing . | . . Piercing . | . . Sneak Attacks . | . . Combat Hostiles . | . . Follow-up Attacks . | . . Damage Inflicted 578 | 184 394 Guns 542 | 184 358 Cannons . | . . Explosions . | . . Melee . | . . Ramming 36 | . 36 Kinetic . | . . Thermal 542 | 184 358 Explosive . | . . Electromagnetic . | . . Impact . | . . Slashing . | . . Piercing . | . . Highest Corruption 14 | . 14 Average Corruption 8 | . 8 Corruption Purged . | . . Corruption Blocked . | . . Effects 3 | . 3 Message Errors 1 | . 1 Heat Flow Errors 1 | . 1 Parts Rejected 1 | . 1 Overload Shots . | . . Overflow Damage . | . . Projectiles . | . . Explosions . | . . Melee . | . . Knockbacks . | . . Impact . | . . Kinetic . | . . Secondary . | . . Self-Inflicted Damage 33 | . 33 Shots . | . . Rammed 1 | . 1 Targets Rammed 1 | . 1 Kicked . | . . Crushed . | . . Highest Temperature 509 | 237 509 Average Temperature 192 | 89 250 Received Heat Transfer 36 | . 36 Effects 10 | . 10 Shutdowns 3 | . 3 Matter Decay 1 | . 1 Damage (minor) 1 | . 1 Damage (major) 5 | . 5 Siege Activations . | . . Robots Corrupted . | . . Combat Hostiles . | . . Parts Fried . | . . Impact Corruptions . | . . Robots Melted . | . . Combat Hostiles . | . . Parts Melted 3 | . 3 Heat Transferred 1739 | 629 1110 Parts Sabotaged . | . . Parts Stolen . | . . Parts Stripped . | . . Power Chain Reactions . | . . Alert | -11 -10 ------- Run | Yrd Mat Peak Influence 181 | 10 181 Initial 6 | . 6 Average 48 | 5 62 Maximum Alert Level . | . . Low Security (%) 100 | 100 100 Level 1 . | . . Level 2 . | . . Level 3 . | . . Level 4 . | . . Level 5 . | . . High Security . | . . Max Security . | . . Squads Dispatched 1 | . 1 Investigation . | . . Extermination . | . . Reinforcement 1 | . 1 Assault . | . . Garrison . | . . Intercept . | . . Searches Triggered . | . . Construction Impeded . | . . Haulers Reinforced . | . . Active Scanning Responses . | . . Cargo Convoy Interrupts . | . . Stealth | -11 -10 --------- Run | Yrd Mat Distress Signals 4 | . 4 Communications Jammed . | . . Distress Signals . | . . Times Spotted 14 | . 14 Peak Tracking Total 7 | . 7 Tactical Retreats 1 | . 1 Traps | -11 -10 ------- Run | Yrd Mat Traps Triggered . | . . Indirectly . | . . Trap Hack Attempts . | . . Triggered . | . . Disarmed . | . . Reprogrammed . | . . Reused . | . . Traps Extracted . | . . Installed . | . . Triggered . | . . Machines | -11 -10 ---------- Run | Yrd Mat Machines Disabled . | . . Max in Single Turn . | . . Machines Repaired . | . . Machines Dismantled . | . . Machines Sabotaged . | . . Overloaded Fab Kills . | . . Hacking | -11 -10 --------- Run | Yrd Mat Machines Accessed 2 | . 2 Terminals 2 | . 2 Fabricators . | . . Repair Stations . | . . Recycling Units . | . . Scanalyzers . | . . Garrison Access . | . . Total Hacks 5 | . 5 Successful 3 | . 3 Failed 2 | . 2 Catastrophic . | . . Database Lockouts . | . . Manual 5 | . 5 Terminals 5 | . 5 Fabricators . | . . Repair Stations . | . . Recycling Units . | . . Scanalyzers . | . . Garrison Access . | . . Terminal Hacks 1 | . 1 Robot Analysis 1 | . 1 Fabricator Hacks . | . . Repair Station Hacks . | . . Recycling Unit Hacks . | . . Scanalyzer . | . . Garrison Access Hacks . | . . Unauthorized Hacks 2 | . 2 Terminals 2 | . 2 Botnet 2 | . 2 Fabricators . | . . Repair Stations . | . . Recycling Units . | . . Scanalyzers . | . . Garrison Access . | . . Data Cores Recovered . | . . Used . | . . Hacking Detections 2 | . 2 Full Trace Events . | . . Feedback Events . | . . Feedback Blocked . | . . Robot Schematics Acquired . | . . Robots Built . | . . Authchips . | . . Time . | . . Total Robot Build Rating . | . . Part Schematics Acquired . | . . Parts Built . | . . Authchips . | . . Time . | . . Total Part Build Rating . | . . Parts Repaired . | . . Time . | . . Parts Recycled . | . . Recycled Matter . | . . Retrieved Matter . | . . Retrieved Components . | . . Parts Scanalyzed . | . . Part Schematics Acquired . | . . Parts Damaged . | . . Bothacking | -11 -10 ------------ Run | Yrd Mat Used RIF Installer . | . . Robots Hacked . | . . Non-combat . | . . Combat . | . . Robot Hacks Applied . | . . Relay Couplers Released . | . . Fabnet Peak Effective % . | . . Robots Rewired . | . . Allies Hacked . | . . Hacks Repelled . | . . Allies | -11 -10 -------- Run | Yrd Mat Total Allies . | . . Largest Group . | . . Highest-Rated Group . | . . Highest-Rated Ally . | . . Total Orders . | . . Ally Attacks . | . . Total Damage . | . . Kills . | . . Allies Corrupted . | . . Allies Melted . | . . Intel | -11 -10 ------- Run | Yrd Mat Robot Analysis Total 1 | . 1 Derelict Logs Recovered . | . . Drone Launches . | . . Drone Recoveries . | . . Exploration | -11 -10 ------------- Run | Yrd Mat Turns Passed 570 | 138 432 Spaces Moved 126 | 54 72 Core . | . . Treads 103 | 31 72 Legs 23 | 23 . Wheels . | . . Hover . | . . Flight . | . . Fastest Speed 120 | 120 160 Average Speed 226 | 142 288 Slowest Speed 320 | 160 320 Overloaded Moves . | . . Propulsion Burnouts . | . . Robots Hopped . | . . Cave-ins Triggered . | . . Exploration Rate (%) 12 | 4 21 Regions Visited 1 Branch Regions . Pre-discovered Areas . | . . Known Exits Taken . | . . Unknown Exits Taken 1 | 1 . Scrap Searched . | . . Spaces Dug . | . . Terrain Destroyed . | . . Melee . | . . Projectile . | . . AOE . | . . Terrain Rammed 13 | . 13 Walls Destroyed . | . . Machines Disabled . | . . Actions | -11 -10 --------- Run | Yrd Mat Total 230 | 94 136 Wait 43 | 19 24 Move 125 | 53 72 Hop . | . . Pick Up 2 | 2 . Fast Attach 1 | 1 . Attach . | . . Detach . | . . Swap 3 | 2 1 Drop 7 | 6 1 Fire 35 | 11 24 Melee . | . . Ram 13 | . 13 Kick . | . . Crush 1 | . 1 Escape Stasis . | . . Rewire . | . . Trap . | . . Miscellaneous . | . . Route ------- -11/Scrapyard -10/Materials History --------- Turn | Location | Event 1 | -11/Scrapyard | Discovered new exit (range 3) 139 | -11/Scrapyard | Entered Materials 317 | -10/Materials | Build established: Mutant 461 | -10/Materials | Core integrity fell below 50% 517 | -10/Materials | System corruption reached 10% 550 | -10/Materials | Core integrity fell below 20% 571 | -10/Materials | Destroyed by S-10 Pest with Light Assault Rifle Last Messages --------------- 00502_ Slammed into Wall. 00502_ Destabilizing: System corrupted (+2). 00506_ W-16 Scout sends out distress signal. 00512_ F5X##3>PSXATNMRRUU W0FULJKZNYF 00516_ Slammed into Wall. 00516_ Destabilizing: System corrupted (+2). 00517_ K-01 Serf collects debris. 00526_ Broken Lgt. Treads destroyed. 00529_ K-01 Serf collects debris. 00530_ Slammed into Wall. 00530_ Destabilizing: System corrupted (+1). 00544_ Slammed into Wall. 00544_ Destabilizing: Core damaged (-12). 00544_ Destabilizing: System corrupted (+2). 00547_ System corrupted: Broken Lgt. Treads rejected. 00553_ R-06 Scavenger collects Broken Lgt. Treads. 00558_ Slammed into Wall. 00558_ Destabilizing: Core damaged (-7). 00569_ Critical hit (Destroy). 00569_ Broken Med. Laser destroyed. Map ----- +----------------------------------------------------+ | ???????????????????????????? | | ???????????????????????????? | | ???????????????????????????? | | #######+#########????????????????????????????????? | | #?????????? ????????????????????????????? | | #??????? # ???????????????????????????? | | #?? ?????# #??????????????????????????? | | #????????+ ##???##????????????????????? | | | ! #??????"?? ?? ????????????????????? | | !!! ##???"?"?? ? / ????????????????????? | | !! #?# ?? ?? ??????????????????? | | #???????#?# """ """ T???????????????? | | #######+##?#?###???# """ ^""" "???????????????? | | ??????# #?#????????# """ """ #???????????????? | | #??#### ####?#???#?#^ ????????????????? | | #### #?##??### ????? ????????????? | | ^ ####### " "??? ??????????????? | | "R"??????????????????? | | T ""? ?????????????????? | | #######???????????????????? | | ####### ## #??????? ???????????? | | #### = #????####+#### " #? ?????????????????? | | ?#?##########????# % T # T #???????????????????? | | ??#?????????? ???# # " #???????#???????????? | | ?????????????????# """ # % #? ????? ???????????? | | ??????#?????? ??# """ s@ #? ?????????????????? | | ??#???????????? ?# """ #% #??? ?? ????????????? | | ??????#?#????????# # % #? ???? ????????????? | | ??????##?????????######## % +% ??????"?????????? | | ?????????????#??????????##+### ???????????????? | | ????????##??????????? ?? ??? #??????????????? | | ????????????? ? ? ???????? ???? ?????????????? | | ?????????????? ??????????? ???? ????????????? | | ???????????? ????????????? ????? ???????????? | | ?????? ??????????????????? ? ? ?###???????????? | | ?????????????? ??????????? ????? ?????????????? | | ?????????????????????????? ???????????????????? | | ?????????????????????????? ?? ????????????????? | | ??????????????????????????? ??????????????????? | | ?????????????????????"????? ?? ????????????????? | | ??????????????????????????? ?????????????????????? | | ?????????????????????????????????????????????????? | | ?????????????????????????????????????????????????? | | ?????????????????????????????????????????????????? | | ?????????????????????????????????????????????????? | | ?????????????????????????????????????????????????? | | ?????????????????????????????????????????????????? | | ?????????????????????????????????????????????????? | | ?????????????????????????????????????????????????? | | ?????????????????????????????????????????????????? | +----------------------------------------------------+ Best States ------------- Heat Dissipation 25 Energy Generation 10 Energy Capacity 250 Matter Stores 300 Matter Capacity 300 Sight Range 16 Terrain Scan Range 16 Terrain Scan Density 10 Evasion (%) 50 Recoil Reduction 2 Item Schematics ----------------- None Robot Schematics ------------------ None Fabricated ------------ Nothing Alien Tech Used ----------------- None Achievements -------------- None Challenges ------------ None Game ------ Seed CatalystMicroGuard Manual? 0 Play Time 00:03:51 Cumulative 112.4 hours Start 2024.09.18 @ 19:07:23 End 2024.09.18 @ 19:09:43 Sessions 1 Manual Loads 0 Difficulty Rogue Special Mode None Game No. 160 Rogue 160 Adventurer 0 Explorer 0 Win Type - Total 1 Types 1/0/0/0/0/0/0/0/0 Lore% 26 Gallery% 57 Achievement% 45 Wizard Run 0 Options --------- Layout 0 ASCII 0 Keyboard 0 Movement Numpad Keybinds 1 Fullscreen 1 Font 18/TerminusBold Map View 76x50 Zoom Use 0% Tactical HUD 1 Map Filters NONE Filters NONE Steam 1 RUN: f8fabbc2-5d6b-474c-9299-f08ea4139522